fUST/lending_fUST_20260307
["ID","MTS","AMOUNT","RATE_DAILY","PERIOD"]
[407840545,1772825446275,-174.61919141,4.654e-05,2]
[407840547,1772825446285,-500.0,4.654e-05,2]
[407840549,1772825446294,-181.08010149,4.654e-05,2]
[407840551,1772825446303,-500.0,4.654e-05,2]
[407840553,1772825446312,-187.78006525,4.654e-05,2]
[407840555,1772825446321,-500.0,4.654e-05,2]
[407840557,1772825446330,-194.72792766,4.654e-05,2]
[407840559,1772825446340,-201.93286099,4.654e-05,2]
[407840561,1772825446349,-500.0,4.654e-05,2]
[407840563,1772825446359,-209.40437684,4.654e-05,2]
[407840565,1772825446368,-500.0,4.654e-05,2]
[407840567,1772825446377,-217.15233878,4.654e-05,2]
[407840569,1772825446386,-500.0,4.654e-05,2]
[407840571,1772825446395,-225.18697532,4.654e-05,2]
[407840573,1772825446404,-500.0,4.654e-05,2]
[407840575,1772825446414,-233.51889341,4.654e-05,2]
[407840577,1772825446423,-500.0,4.654e-05,2]
[407840579,1772825446432,-242.15909246,4.654e-05,2]
[407840581,1772825446441,-500.0,4.654e-05,2]
[407840583,1772825446450,-251.11897888,4.654e-05,2]
[407840585,1772825446459,-500.0,4.654e-05,2]
[407840587,1772825446468,-260.4103811,4.654e-05,2]
[407840589,1772825446477,-148.09006296,4.654e-05,2]
[407840591,1772825446489,-121.95550224,4.654e-05,2]
[407840593,1772825446498,-280.03725112,4.654e-05,2]
[407840595,1772825446507,-231.63724664,4.654e-05,2]
[407841297,1772825453632,-839.48754375,4.514e-05,2]
[407842839,1772826632114,-1898.9275318,3.121e-05,2]
[407842841,1772826632123,-5000.0,3.153e-05,2]
[407842843,1772826632133,-322.58770762,3.201e-05,2]
[407842845,1772826632142,-1200.0,3.517e-05,2]
[407842846,1772826632152,-300.0,3.521e-05,2]
[407842847,1772826632161,-300.0,3.521e-05,2]
[407842848,1772826632170,-300.0,3.521e-05,2]
[407842849,1772826632180,-638.0,3.522e-05,2]
[407842850,1772826632190,-1391.0,3.522e-05,2]
[407842851,1772826632199,-2317.031,3.522e-05,2]
[407842852,1772826632208,-15.84610525,3.522e-05,2]
[407843035,1772826640739,-677.98061188,3.487e-05,2]
[407843307,1772826643679,-806.99127554,3.487e-05,2]
[407843309,1772826643690,-2400.97691718,3.487e-05,2]
[407843311,1772826643699,-715.15389475,3.522e-05,2]
[407843313,1772826643708,-1680.0,3.869e-05,2]
[407843315,1772826643717,-300.0,3.873e-05,2]
[407843317,1772826643726,-420.0,3.873e-05,2]
[407843319,1772826643736,-500.0,3.973e-05,2]
[407843321,1772826643745,-500.0,3.973e-05,2]
[407843323,1772826643754,-500.0,3.973e-05,2]
[407843325,1772826643763,-500.0,3.973e-05,2]
[407843327,1772826643772,-500.0,3.973e-05,2]
[407843329,1772826643781,-500.0,3.973e-05,2]
[407843331,1772826643791,-500.0,3.973e-05,2]
[407843333,1772826643800,-500.0,3.973e-05,2]
[407843335,1772826643809,-233603.9063325,4e-05,2]
[407843338,1772826643824,-185118.28504538,4e-05,2]
[407843563,1772826646430,-302.0,4e-05,2]
[407846155,1772827223948,-1052.86313883,3.349e-05,2]
[407846156,1772827223978,-1391.73911542,3.349e-05,2]
[407846161,1772827253357,-1052.86313883,3.349e-05,2]
[407846304,1772827832647,-775.33385443,2.607e-05,2]
[407846305,1772827832659,-248.88308532,2.607e-05,2]
[407846306,1772827832669,-738.96619073,2.633e-05,2]
[407846307,1772827832680,-1163.20743793,2.633e-05,2]
[407846308,1772827832692,-619.55233372,2.633e-05,2]
[407846328,1772827838413,-454.1514009,2.633e-05,2]
[407846816,1772827846412,-561.0,2.633e-05,2]
[407846817,1772827846425,-1463.12263672,2.633e-05,2]
[407846818,1772827846434,-240.0,2.685e-05,2]
[407846819,1772827846443,-3501.0037167,2.686e-05,2]
[407846820,1772827846452,-301.059312,2.784e-05,2]
[407846821,1772827846462,-300.0,3.297e-05,2]
[407846822,1772827846471,-103.36420033,3.383e-05,2]
[407846823,1772827846519,-396.63579967,3.383e-05,2]
[407846824,1772827846529,-266.92762917,3.383e-05,2]
[407846825,1772827846538,-2189.0,3.537e-05,2]
[407846826,1772827846548,-638.0,3.537e-05,2]
[407846827,1772827846558,-1391.0,3.537e-05,2]
[407846828,1772827846568,-420.0,3.627e-05,2]
[407846829,1772827846577,-17949.96008678,3.762e-05,2]
[407846940,1772829023918,-1203.23266129,3.173e-05,2]
[407846956,1772829031441,-388.02580248,3.173e-05,2]
[407846962,1772829031498,-479.88050818,3.173e-05,2]
[407846964,1772829031508,-246.92811552,3.205e-05,2]
[407846966,1772829031519,-4753.07188448,3.205e-05,2]
[407846968,1772829031528,-333.21491792,3.32e-05,2]
[407846970,1772829031538,-300.0,3.552e-05,2]
[407846972,1772829031547,-300.0,3.552e-05,2]
[407846974,1772829031556,-300.0,3.552e-05,2]
[407846976,1772829031566,-300.0,3.552e-05,2]
[407846978,1772829031575,-165.1707548,3.552e-05,2]
[407847076,1772829037956,-134.8292452,3.552e-05,2]
[407847078,1772829037966,-500.0,3.553e-05,2]
[407847080,1772829037975,-500.0,3.553e-05,2]
[407847082,1772829037988,-500.0,3.553e-05,2]
[407847084,1772829037998,-500.0,3.553e-05,2]
[407847087,1772829038010,-53530.68998189,3.573e-05,2]
[407847654,1772829044155,-806.99127554,3.573e-05,2]
[407847749,1772829045687,-251.22453172,3.573e-05,2]
[407847750,1772829045854,-2540.34592144,3.573e-05,2]
[407848024,1772830241003,-1587.51166762,2.047e-05,2]
[407848026,1772830241016,-746.94119589,2.068e-05,2]
[407848211,1772830242862,-4253.05880411,2.068e-05,2]
[407848213,1772830242872,-301.059312,2.089e-05,2]
[407848215,1772830242882,-334.44327208,2.376e-05,2]
[407848218,1772830242892,-300.0,2.411e-05,2]
[407848220,1772830242902,-1200.0,2.411e-05,2]
[407848222,1772830242910,-300.0,2.411e-05,2]
[407848224,1772830242919,-7185.01490766,2.412e-05,2]
[407848226,1772830242932,-1816.61900154,2.412e-05,2]
[407848228,1772830242941,-420.0,2.652e-05,2]
[407848230,1772830242951,-599.45577412,2.652e-05,2]
[407848234,1772830242975,-840.54422588,2.652e-05,2]
[407848236,1772830242984,-420.0,2.652e-05,2]
[407848237,1772830242993,-587.0,2.917e-05,2]
[407848239,1772830243003,-398.51273128,2.948e-05,2]
[407848242,1772830243015,-823.0,3.209e-05,2]
[407848244,1772830243024,-500.0,3.353e-05,2]
[407848246,1772830243034,-500.0,3.353e-05,2]
[407848248,1772830243044,-500.0,3.353e-05,2]
[407848250,1772830243054,-485.11238141,3.353e-05,2]
[407848252,1772830243063,-3596.37991994,3.373e-05,2]
[407848544,1772830245760,-1297.10400051,3.339e-05,2]
[407848546,1772830245769,-22117.84500323,3.373e-05,2]
[407848548,1772830245781,-971.313,3.373e-05,2]
[407849280,1772830824509,-1745.69339194,2.275e-05,2]
[407849300,1772830996611,514.13,2e-05,2]
[407849326,1772831431783,-1297.01723482,2.14e-05,2]
[407849327,1772831431794,-2366.91,2.14e-05,2]
[407849397,1772831438339,-887.39660806,2.14e-05,2]
[407849399,1772831438357,-4857.83825449,2.162e-05,2]
[407849401,1772831438369,-355.71823881,2.195e-05,2]
[407849402,1772831438381,-1200.0,2.205e-05,2]
[407849404,1772831438394,-300.0,2.226e-05,2]
[407849406,1772831438405,-300.0,2.226e-05,2]
[407849408,1772831438416,-300.0,2.226e-05,2]
[407849410,1772831438427,-163.367388,2.297e-05,2]
[407849412,1772831438437,-1680.0,2.425e-05,2]
[407849414,1772831438447,-222.50045137,2.449e-05,2]
[407849416,1772831438460,-197.49954863,2.449e-05,2]
[407849418,1772831438470,-329.69018931,2.449e-05,2]
[407849649,1772831441342,-90.30981069,2.449e-05,2]
[407849650,1772831441352,-587.0,2.693e-05,2]
[407849651,1772831441365,-160.00647381,2.9e-05,2]
[407849652,1772831441375,-150.62915628,2.9e-05,2]
[407849653,1772831441385,-151.64008149,2.9e-05,2]
[407849654,1772831441398,-823.0,2.963e-05,2]
[407849655,1772831441408,-7645.55577031,3e-05,2]
[407849720,1772831443301,-3896.11847603,3e-05,2]
[407849721,1772831443313,-806.99127554,3e-05,2]
[407849731,1772831445984,-12549.15589185,3e-05,2]
[407849732,1772831445996,-1992.05983524,3e-05,2]
[407849733,1772831446041,-3140.07511611,3e-05,2]
[407849734,1772831446053,-4717.07435341,3e-05,2]
[407849735,1772831446064,-75804.4648571,3e-05,2]
[407849809,1772832624328,-804.1536766,2.302e-05,2]
[407849810,1772832624341,-1333.92366463,2.302e-05,2]
[407849811,1772832624351,-652.88048012,2.325e-05,2]
[407849812,1772832624360,-151.27319648,2.337e-05,2]
[407849820,1772832631942,-213.33211949,2.337e-05,2]
[407849821,1772832631951,-154.23611411,2.7e-05,2]
[407849823,1772832631961,-161.04325733,2.7e-05,2]
[407849824,1772832631970,-2199.00476357,2.7e-05,2]
[407849825,1772832631982,-1979.025,2.7e-05,2]
[407849826,1772832631993,-1495.73108,2.7e-05,2]
[407849827,1772832632004,-1533.78,2.7e-05,2]
[407850274,1772832646122,-97226.08710642,2.7e-05,2]
[407850277,1772832853644,429.917212,1.914e-05,2]
[407850278,1772832853879,429.917212,1.995e-05,2]
[407850286,1772833079591,1846.8660324,2e-05,2]
[407850314,1772833434399,4803.16498541,2e-05,2]
[407850318,1772833511446,574.1262434,1.761e-05,2]
[407850874,1772833844456,-246.92811552,2.055e-05,2]
[407850876,1772833844467,-357.31320965,2.07e-05,2]
[407850878,1772833844476,-429.917212,2.075e-05,2]
[407850880,1772833844485,-429.917212,2.156e-05,2]
[407850882,1772833844495,-429.917212,2.237e-05,2]
[407850884,1772833844503,-429.917212,2.317e-05,2]
[407850886,1772833844513,-300.0,2.499e-05,2]
[407850888,1772833844523,-1083.88982681,2.499e-05,2]
[407850890,1772833844534,-116.11017319,2.499e-05,2]
[407850892,1772833844544,-229.07316694,2.5e-05,2]
[407851068,1772833846304,-3982.08759975,2.5e-05,2]
[407851070,1772833846314,-9500.54642431,2.5e-05,2]
[407851072,1772833846323,-8505.13310345,2.5e-05,2]
[407851074,1772833846331,-1229.43674853,2.5e-05,2]
[407851416,1772833890872,165.267406,2.025e-05,120]
[407851423,1772834039562,3861.30678664,2e-05,2]
[407851424,1772834047658,501.51528959,2e-05,2]
[407851425,1772834055668,5000.0,2e-05,2]
[407851426,1772834099581,3454.98648911,2e-05,2]
[407851433,1772834186421,677.98061188,2e-05,2]
[407851437,1772834424106,-165.267406,2.025e-05,2]
[407851438,1772834424132,-165.267406,2.025e-05,25]
[407851439,1772834424164,-165.267406,2.025e-05,49]
[407851440,1772834424193,-165.267406,2.025e-05,72]
[407851441,1772834424222,-165.267406,2.025e-05,96]
[407851442,1772834424250,-357.20222913,2.025e-05,2]
[407851443,1772834453450,-13.18865016,2.025e-05,2]
[407851464,1772834488615,2500.88158589,2e-05,2]
[407851575,1772835032337,-486.81134984,2.025e-05,2]
[407851577,1772835032347,-350.05818455,2.168e-05,2]
[407851579,1772835032356,-166.0,2.5e-05,2]
[407851581,1772835032367,-155.4657411,2.5e-05,3]
[407851583,1772835032376,-164.22771368,2.5e-05,3]
[407851585,1772835032385,-167.45247367,2.5e-05,3]
[407851586,1772835032394,-166.13782787,2.5e-05,3]
[407851588,1772835032404,-158.50113216,2.5e-05,3]
[407851590,1772835032412,-500.0,2.573e-05,2]
[407851591,1772835032421,-500.0,2.573e-05,2]
[407851593,1772835032431,-500.0,2.573e-05,2]
[407851595,1772835032440,-500.0,2.573e-05,2]
[407851596,1772835032449,-500.0,2.573e-05,2]
[407851597,1772835032458,-300.0,2.594e-05,2]
[407851598,1772835032467,-2296.94769276,2.595e-05,2]
[407851635,1772835038480,-1886.71502502,2.595e-05,2]
[407851637,1772835038492,-758.50493675,2.595e-05,2]
[407851889,1772835041012,-837.70706333,2.595e-05,2]
[407852048,1772835043569,-962.48900003,2.595e-05,2]
[407852053,1772835046586,-6154.53933036,2.595e-05,2]
[407852152,1772836231524,-2142.08896324,2.432e-05,2]
[407852154,1772836231535,-467.52642622,2.432e-05,2]
[407852156,1772836231546,-2390.38461054,2.432e-05,2]
[407852158,1772836231555,-350.03024681,2.484e-05,2]
[407852160,1772836231564,-1200.0,2.498e-05,2]
[407852162,1772836231573,-300.0,2.499e-05,2]
[407852164,1772836231587,-300.0,2.499e-05,2]
[407852166,1772836231596,-300.0,2.499e-05,2]
[407852168,1772836231605,-1819.93050522,2.5e-05,2]
[407852170,1772836231615,-2079.04661858,2.5e-05,2]
[407852191,1772836232132,-1499.39648708,2.5e-05,2]
[407852192,1772836232171,-274.07079445,2.5e-05,2]
[407852218,1772836237621,-183.53925913,2.5e-05,2]
[407852220,1772836237631,-4476.01832831,2.5e-05,2]
[407852222,1772836237640,-4459.34354644,2.5e-05,2]
[407852224,1772836237649,-4882.6339337,2.5e-05,2]
[407852260,1772836237975,-500.0,2.513e-05,2]
[407852262,1772836237985,-500.0,2.513e-05,2]
[407852264,1772836237995,-536.3477969,2.513e-05,2]
[407852266,1772836238004,-500.0,2.513e-05,2]
[407852268,1772836238014,-11914.67597405,2.537e-05,2]
[407852270,1772836238025,-777.43067162,2.537e-05,2]
[407852272,1772836238036,-2721.75168527,2.537e-05,2]
[407854535,1772836261936,-1499.39648708,2.512e-05,2]
[407859889,1772837431637,-380.32218432,2.401e-05,2]
[407859890,1772837431655,-3120.2813286,2.401e-05,2]
[407859891,1772837431664,-349.94011281,2.444e-05,2]
[407859892,1772837431674,-300.0,2.499e-05,2]
[407859893,1772837431683,-1200.0,2.499e-05,2]
[407859894,1772837431693,-219.27129177,2.5e-05,2]
[407859895,1772837431703,-329.65943281,2.5e-05,2]
[407859896,1772837431712,-353.84024804,2.5e-05,2]
[407859897,1772837431722,-370.49780382,2.5e-05,2]
[407859899,1772837431731,-186.40109248,2.5e-05,2]
[407859900,1772837431741,-158.41247055,2.513e-05,2]
[407859901,1772837431753,-341.58752945,2.513e-05,2]
[407859902,1772837431763,-500.0,2.513e-05,2]
[407859903,1772837431772,-500.0,2.513e-05,2]
[407859904,1772837431781,-500.0,2.513e-05,2]
[407859905,1772837431790,-500.0,2.513e-05,2]
[407859906,1772837431800,-1079.5650701,2.513e-05,2]
[407859907,1772837431810,-6025.0806325,2.513e-05,2]
[407859908,1772837431819,-151.0,2.513e-05,2]
[407859909,1772837431828,-151.0,2.513e-05,2]
[407859910,1772837431837,-151.0,2.513e-05,2]
[407859911,1772837431847,-180.635411,2.513e-05,2]
[407859912,1772837431856,-6019.75084969,2.513e-05,2]
[407859915,1772837437814,-421.27231241,2.513e-05,2]
[407859916,1772837437823,-151.0,2.636e-05,2]
[407859917,1772837437833,-151.0,2.636e-05,2]
[407859918,1772837437842,-151.0,2.636e-05,2]
[407859919,1772837437851,-233.32,2.74e-05,2]
[407859920,1772837437860,-233.32,2.74e-05,2]
[407859921,1772837437869,-233.32,2.74e-05,2]
[407859922,1772837437879,-233.32,2.74e-05,2]
[407859923,1772837437889,-420.0,2.749e-05,2]
[407859924,1772837437898,-500.0,2.762e-05,2]
[407859925,1772837437908,-500.0,2.762e-05,2]
[407859926,1772837437918,-500.0,2.762e-05,2]
[407859927,1772837437928,-500.0,2.762e-05,2]
[407859928,1772837437938,-500.0,2.762e-05,2]
[407859929,1772837437948,-500.0,2.762e-05,2]
[407859930,1772837437958,-347.48380108,2.808e-05,2]
[407859931,1772837437972,-6093.53936102,2.808e-05,2]
[407859932,1772837437985,-1344.3772064,2.851e-05,2]
[407859933,1772837438005,-1079.5650701,2.879e-05,2]
[407859934,1772837438016,-151.0,2.879e-05,2]
[407859935,1772837438030,-151.0,2.879e-05,2]
[407859936,1772837438040,-151.0,2.879e-05,2]
[407859937,1772837438049,-299.9711013,2.926e-05,2]
[407859938,1772837438059,-233.32,2.99e-05,2]
[407859939,1772837438069,-233.32,2.99e-05,2]
[407859940,1772837438079,-233.32,2.99e-05,2]
[407859941,1772837438088,-233.32,2.99e-05,2]
[407859942,1772837438098,-151.0,2.99e-05,2]
[407859943,1772837438107,-151.0,2.99e-05,2]
[407859944,1772837438117,-151.0,2.99e-05,2]
[407859945,1772837438126,-155.0,2.999e-05,2]
[407859946,1772837438135,-42.42795521,3e-05,2]
[407860581,1772837445985,-190.89204479,3e-05,2]
[407860583,1772837445995,-233.32,3e-05,2]
[407860586,1772837446005,-233.32,3e-05,2]
[407860588,1772837446015,-233.32,3e-05,2]
[407860590,1772837446027,-233.32,3e-05,2]
[407860591,1772837446036,-233.32,3e-05,2]
[407860594,1772837446046,-233.32,3e-05,2]
[407860595,1772837446056,-233.32,3e-05,2]
[407860598,1772837446067,-233.32,3e-05,2]
[407860599,1772837446077,-233.32,3e-05,2]
[407860601,1772837446087,-233.32,3e-05,2]
[407860603,1772837446097,-233.32,3e-05,2]
[407860605,1772837446106,-1000.0,3e-05,2]
[407860607,1772837446116,-1000.0,3e-05,2]
[407860609,1772837446125,-1000.0,3e-05,2]
[407860610,1772837446133,-1000.0,3e-05,2]
[407860611,1772837446142,-1000.0,3e-05,2]
[407860612,1772837446151,-1000.0,3e-05,2]
[407860613,1772837446160,-1000.0,3e-05,2]
[407860614,1772837446171,-1000.0,3e-05,2]
[407860615,1772837446179,-1000.0,3e-05,2]
[407860616,1772837446188,-858.94290193,3e-05,2]
[407862096,1772838631839,-679.23543468,2.055e-05,2]
[407862097,1772838636488,-4320.76456532,2.055e-05,2]
[407862099,1772838636497,-4754.82825211,2.076e-05,2]
[407862100,1772838636509,-245.17174789,2.076e-05,2]
[407862102,1772838636518,-361.04898843,2.097e-05,2]
[407862104,1772838636528,-307.93391161,2.108e-05,2]
[407862105,1772838636536,-300.0,2.185e-05,2]
[407862106,1772838636545,-454.8403031,2.23e-05,2]
[407862107,1772838636555,-1200.0,2.528e-05,2]
[407862108,1772838636563,-300.0,2.529e-05,2]
[407862109,1772838636572,-300.0,2.529e-05,2]
[407862110,1772838636582,-300.0,2.529e-05,2]
[407862111,1772838636591,-300.0,2.529e-05,2]
[407862112,1772838636600,-500.0,2.543e-05,2]
[407862113,1772838636611,-500.0,2.543e-05,2]
[407862114,1772838636620,-500.0,2.543e-05,2]
[407862115,1772838636629,-500.0,2.543e-05,2]
[407862116,1772838636638,-500.0,2.543e-05,2]
[407862117,1772838636647,-500.0,2.543e-05,2]
[407862118,1772838636656,-559.47907016,2.543e-05,2]
[407862119,1772838636665,-500.0,2.543e-05,2]
[407862120,1772838636674,-9412.90714907,2.562e-05,2]
[407862121,1772838636686,-1666.6846,2.562e-05,2]
[407862122,1772838636697,-18865.32668229,2.562e-05,2]
[407862129,1772838637907,-18432.3105312,2.562e-05,2]
[407862130,1772838637919,-55720.63346579,2.562e-05,2]
[407862131,1772838637968,-13643.14897322,2.562e-05,2]
[407862152,1772838640406,-836.94649174,2.536e-05,2]
[407862154,1772838640416,-3560.7546155,2.562e-05,2]
[407862396,1772838643518,-288.07357235,2.536e-05,2]
[407862415,1772838645873,-2156.30516295,2.536e-05,2]
[407862417,1772838645882,-9730.62934142,2.562e-05,2]
[407862419,1772838645934,-7232.04768459,2.562e-05,2]
[407862568,1772839824338,-4096.75568745,2.171e-05,2]
[407862578,1772839832009,-658.06644971,2.171e-05,2]
[407862581,1772839832032,-245.17786284,2.171e-05,2]
[407862583,1772839832041,-756.43385673,2.193e-05,2]
[407862585,1772839832051,-2156.30516295,2.215e-05,2]
[407862587,1772839832061,-1200.0,2.293e-05,2]
[407862589,1772839832070,-373.20703129,2.295e-05,2]
[407862591,1772839832080,-300.0,2.496e-05,2]
[407862594,1772839832089,-300.0,2.496e-05,2]
[407862597,1772839832099,-300.0,2.496e-05,2]
[407862600,1772839832109,-1845.43206917,2.5e-05,2]
[407862602,1772839832118,-2125.15294488,2.5e-05,2]
[407862718,1772839838172,-1964.07879104,2.5e-05,2]
[407862719,1772839838182,-4518.74863819,2.5e-05,2]
[407862721,1772839838191,-1183.7464239,2.5e-05,2]
[407862723,1772839838206,-3764.51911665,2.5e-05,2]
[407862725,1772839838215,-1890.33370587,2.5e-05,2]
[407862735,1772839840669,-2650.4793466,2.5e-05,2]
[407862736,1772839840681,-1680.0,2.523e-05,2]
[407862737,1772839840692,-1006.49397309,2.536e-05,2]
[407862756,1772839846141,-6819.83309876,2.536e-05,2]
[407862758,1772839846165,-14956.22456948,2.536e-05,2]
[407862759,1772839846175,-235.10220969,2.543e-05,2]
[407862760,1772839846184,-9477.2711111,2.558e-05,2]
[407862761,1772839846194,-5447.1739469,2.558e-05,2]
[407862762,1772839846203,-10120.0973917,2.558e-05,2]
[407862763,1772839846212,-415.1473566,2.558e-05,2]
[407862764,1772839846221,-351.0,2.562e-05,2]
[407862765,1772839846231,-242.58150042,2.562e-05,2]
[407862767,1772839846239,-250.0,2.633e-05,2]
[407862768,1772839846248,-500.0,2.732e-05,2]
[407862770,1772839846257,-151.0,2.74e-05,2]
[407862772,1772839846266,-151.0,2.74e-05,2]
[407862774,1772839846275,-151.0,2.74e-05,2]
[407862775,1772839846284,-151.0,2.74e-05,2]
[407862776,1772839846292,-151.0,2.74e-05,2]
[407862777,1772839846302,-151.0,2.74e-05,2]
[407862778,1772839846311,-151.0,2.74e-05,2]
[407862779,1772839846319,-151.0,2.74e-05,2]
[407862780,1772839846329,-283.0,2.746e-05,2]
[407862781,1772839846338,-420.0,2.746e-05,2]
[407862782,1772839846348,-151.0,2.748e-05,2]
[407862783,1772839846357,-151.0,2.748e-05,2]
[407862784,1772839846367,-151.0,2.748e-05,2]
[407862785,1772839846376,-190.41204479,2.748e-05,2]
[407862786,1772839846385,-500.0,2.762e-05,2]
[407862787,1772839846394,-500.0,2.762e-05,2]
[407862788,1772839846403,-500.0,2.762e-05,2]
[407862789,1772839846413,-500.0,2.762e-05,2]
[407862790,1772839846422,-500.0,2.762e-05,2]
[407862791,1772839846431,-500.0,2.762e-05,2]
[407862792,1772839846441,-500.0,2.762e-05,2]
[407862793,1772839846450,-500.0,2.762e-05,2]
[407862794,1772839846459,-500.0,2.762e-05,2]
[407862795,1772839846469,-500.0,2.762e-05,2]
[407862796,1772839846478,-500.0,2.762e-05,2]
[407862797,1772839846487,-500.0,2.762e-05,2]
[407862798,1772839846496,-500.0,2.762e-05,2]
[407862799,1772839846505,-500.0,2.762e-05,2]
[407862800,1772839846515,-500.0,2.762e-05,2]
[407862801,1772839846524,-500.0,2.762e-05,2]
[407862802,1772839846533,-500.0,2.762e-05,2]
[407862803,1772839846542,-500.0,2.762e-05,2]
[407862804,1772839846551,-500.0,2.762e-05,2]
[407862805,1772839846560,-500.0,2.762e-05,2]
[407862806,1772839846569,-500.0,2.762e-05,2]
[407862807,1772839846578,-500.0,2.762e-05,2]
[407862808,1772839846587,-500.0,2.762e-05,2]
[407862809,1772839846596,-500.0,2.762e-05,2]
[407862810,1772839846605,-500.0,2.762e-05,2]
[407862811,1772839846614,-500.0,2.762e-05,2]
[407862812,1772839846623,-500.0,2.762e-05,2]
[407862813,1772839846632,-500.0,2.762e-05,2]
[407862814,1772839846641,-500.0,2.762e-05,2]
[407862815,1772839846650,-500.0,2.762e-05,2]
[407862816,1772839846660,-500.0,2.762e-05,2]
[407862817,1772839846988,-500.0,2.762e-05,2]
[407862818,1772839846998,-500.0,2.762e-05,2]
[407862819,1772839847008,-500.0,2.762e-05,2]
[407862820,1772839847017,-500.0,2.762e-05,2]
[407862821,1772839847026,-500.0,2.762e-05,2]
[407862822,1772839847035,-500.0,2.762e-05,2]
[407862823,1772839847045,-500.0,2.762e-05,2]
[407862824,1772839847054,-500.0,2.762e-05,2]
[407862825,1772839847063,-500.0,2.762e-05,2]
[407862826,1772839847071,-500.0,2.762e-05,2]
[407862827,1772839847080,-500.0,2.762e-05,2]
[407862828,1772839847089,-500.0,2.762e-05,2]
[407862829,1772839847099,-500.0,2.762e-05,2]
[407862830,1772839847108,-500.0,2.762e-05,2]
[407862831,1772839847122,-500.0,2.762e-05,2]
[407862832,1772839847131,-500.0,2.762e-05,2]
[407862833,1772839847140,-500.0,2.762e-05,2]
[407862834,1772839847149,-500.0,2.762e-05,2]
[407862835,1772839847158,-500.0,2.762e-05,2]
[407862836,1772839847167,-500.0,2.762e-05,2]
[407862837,1772839847177,-500.0,2.762e-05,2]
[407862838,1772839847186,-500.0,2.762e-05,2]
[407862839,1772839847195,-126.09282925,2.762e-05,2]
[407862840,1772839847249,500.0,2e-05,2]
[407862841,1772839847579,500.0,2e-05,2]
[407862842,1772839848334,500.0,2e-05,2]
[407862843,1772839849075,500.0,2e-05,2]
[407862844,1772839849829,500.0,2e-05,2]
[407862845,1772839850576,500.0,2e-05,2]
[407862846,1772839851338,500.0,2e-05,2]
[407862847,1772839852560,500.0,2e-05,2]
[407862848,1772839852813,500.0,2e-05,2]
[407862849,1772839853562,500.0,2e-05,2]
[407862850,1772839854316,500.0,2e-05,2]
[407862851,1772839855063,500.0,2e-05,2]
[407862852,1772839855820,466.02,2e-05,2]
[407862853,1772839922767,500.0,2e-05,2]
[407862854,1772839924490,500.0,2e-05,2]
[407862855,1772839925259,500.0,2e-05,2]
[407862856,1772839926035,500.0,2e-05,2]
[407862857,1772839927884,500.0,2e-05,2]
[407862858,1772839928646,500.0,2e-05,2]
[407862859,1772839930300,500.0,2e-05,2]
[407862860,1772839930389,500.0,2e-05,2]
[407862861,1772839930953,500.0,2e-05,2]
[407862862,1772839931682,500.0,2e-05,2]
[407862863,1772839932440,500.0,2e-05,2]
[407862864,1772839933200,500.0,2e-05,2]
[407862865,1772839933985,500.0,2e-05,2]
[407862866,1772839934712,500.0,2e-05,2]
[407862867,1772839935470,500.0,2e-05,2]
[407862868,1772839936235,500.0,2e-05,2]
[407862869,1772839936993,500.0,2e-05,2]
[407862870,1772839937739,500.0,2e-05,2]
[407862871,1772839938487,500.0,2e-05,2]
[407862872,1772839939234,500.0,2e-05,2]
[407862873,1772839939992,500.0,2e-05,2]
[407862874,1772839941414,500.0,2e-05,2]
[407862875,1772839941481,500.0,2e-05,2]
[407862876,1772839942231,500.0,2e-05,2]
[407862877,1772839942985,500.0,2e-05,2]
[407862878,1772839943733,500.0,2e-05,2]
[407862879,1772839944478,500.0,2e-05,2]
[407862880,1772839945257,500.0,2e-05,2]
[407862881,1772839947069,500.0,2e-05,2]
[407862882,1772839947829,500.0,2e-05,2]
[407862883,1772839948593,500.0,2e-05,2]
[407862884,1772839949349,500.0,2e-05,2]
[407862885,1772839950113,500.0,2e-05,2]
[407862886,1772839950875,500.0,2e-05,2]
[407862887,1772839952450,500.0,2e-05,2]